bitfinex-derivatives/quotes_ETHF0:USTF0_20241020
["timestamp","ask_amount","ask_price","bid_price","bid_amount"]
[1729464559930,1.90119221,2746.8,2746.7,0.2913]
[1729464560330,1.90119221,2746.8,2746.7,3.9321]
[1729464561438,3.8496,2747.4,2746.7,3.6408]
[1729464561638,3.8496,2747.4,2747.1,0.29125]
[1729464562440,3.8496,2747.4,2747.3,0.29123]
[1729464562935,3.8496,2747.4,2747.2,0.29124]
[1729464563534,3.8496,2747.4,2747.3,0.29123]
[1729464567244,3.2078,2747.5,2747.4,0.29122]
[1729464567934,3.7533,2747.7,2747.0,0.1485357]
[1729464567935,5.6172,2747.7,2747.0,0.1485357]
[1729464568135,5.6172,2747.7,2747.5,0.29121]
[1729464568335,5.6172,2747.7,2747.4,0.29122]
[1729464569138,5.6172,2747.7,2746.8,5.1527]
[1729464569335,3.7533,2747.7,2747.6,0.2912]
[1729464570343,1.848,2747.7,2747.6,3.9304]
[1729464570643,3.2078,2747.8,2747.7,0.29119]
[1729464571238,3.8052,2748.3,2747.2,2.39664658]
[1729464571239,3.8052,2748.3,2747.4,3.2078]
[1729464571442,3.8052,2748.3,2748.1,0.29114]
[1729464571843,3.8052,2748.3,2747.5,0.72804]
[1729464572142,3.8052,2748.3,2747.7,3.2078]
[1729464572346,3.8052,2748.3,2748.2,0.29114]
[1729464574134,3.49891,2748.5,2748.2,0.29114]
[1729464574342,3.49891,2748.5,2747.7,3.2078]
[1729464574343,3.2078,2748.5,2748.4,0.29112]
[1729464574644,3.2078,2748.8,2747.7,3.35867832]
[1729464574940,3.2078,2748.8,2748.6,0.29109]
[1729464575144,3.2078,2748.8,2748.7,0.29109]
[1729464575747,3.2078,2748.8,2748.6,0.29109]
[1729464576437,3.2078,2748.8,2748.7,0.29109]
[1729464576837,3.49888,2748.8,2748.5,0.2911]
[1729464577446,0.29109,2748.7,2748.5,0.2911]
[1729464577647,3.2078,2748.8,2747.7,3.2078]
[1729464577846,2.12871,2748.6,2748.3,0.29112]
[1729464578042,1.8376,2748.6,2748.5,0.29111]
[1729464578938,3.2078,2748.8,2748.7,0.29109]
[1729464580646,1.9816,2749.0,2748.9,0.29106]
[1729464582248,1.9816,2749.0,2748.0,3.9357]
[1729464582648,1.9816,2749.0,2748.8,0.29107]
[1729464583353,1.9816,2749.0,2748.9,0.29106]
[1729464585138,1.9816,2749.0,2748.0,0.14789826]
[1729464585139,5.1894,2749.0,2748.0,5.3388]
[1729464585343,5.1894,2749.0,2748.9,0.29106]
[1729464585552,1.9816,2749.0,2748.9,0.29106]
[1729464586844,3.7963,2749.1,2748.4,0.7278]
[1729464587043,3.7963,2749.1,2749.0,0.29105]
[1729464591751,3.7963,2749.1,2748.9,0.29106]
[1729464592049,0.29105,2749.0,2748.8,0.29107]
[1729464592249,4.08735,2749.1,2748.9,0.29106]
[1729464592452,4.08735,2749.1,2748.4,0.14607905]
[1729464592651,0.29105,2749.0,2748.8,0.29107]
[1729464593255,3.7963,2749.1,2748.3,3.35498129]
[1729464593461,0.29107,2748.9,2748.3,0.14718129]
[1729464593655,0.29107,2748.9,2748.1,2.77685]
[1729464594047,0.29107,2748.9,2748.7,0.29108]
[1729464594866,3.7963,2749.1,2749.0,0.29105]
[1729464595363,4.08735,2749.1,2748.8,0.29107]
[1729464596062,4.08735,2749.1,2748.9,0.29106]
[1729464596962,4.08735,2749.1,2748.8,0.29107]
[1729464597163,3.7963,2749.1,2748.3,3.2078]
[1729464597359,3.7963,2749.1,2749.0,0.29105]
[1729464597553,3.7963,2749.1,2748.4,0.7278]
[1729464597759,3.7963,2749.1,2749.0,0.29105]
[1729464598363,3.7963,2749.1,2748.4,0.7278]
[1729464598563,3.7963,2749.1,2748.7,0.29107]
[1729464598564,0.29106,2749.0,2748.7,0.29107]
[1729464598765,3.7963,2749.1,2748.2,2.049]
[1729464599069,3.2078,2749.0,2748.0,3.35456188]
[1729464599364,3.2078,2748.3,2747.7,3.2078]
[1729464599570,3.2078,2748.3,2747.7,3.49899]
[1729464599571,0.29116,2748.0,2747.7,3.49899]
[1729464599773,0.29116,2748.0,2747.4,4.62226861]
[1729464599774,0.29118,2747.8,2747.4,4.62226861]
[1729464600063,3.2078,2748.0,2747.4,4.62226861]
[1729464600571,0.2912,2747.6,2747.4,1.41446861]
[1729464600771,3.2078,2747.7,2747.4,1.41446861]
[1729464600970,3.6632,2747.5,2747.4,1.41446861]
[1729464601360,3.6632,2747.5,2747.3,1.88595815]
[1729464601361,7.3032,2747.5,2747.3,1.88595815]
[1729464601570,0.29124,2747.3,2747.1,2.35744769]
[1729464601964,3.6632,2747.5,2747.1,2.35744769]
[1729464601965,3.95442,2747.5,2747.1,2.35744769]
[1729464602570,3.6632,2747.5,2747.1,0.29125]
[1729464603461,3.6632,2747.5,2747.2,0.29124]
[1729464603659,3.6632,2747.5,2747.4,0.29122]
[1729464603660,1.8725,2747.5,2747.4,0.29122]
[1729464603858,3.2078,2747.7,2747.6,0.2912]
[1729464604060,3.2078,2747.7,2746.9,4.6079]
[1729464604061,5.0586,2748.0,2747.9,0.29116]
[1729464604972,5.0586,2748.0,2747.9,3.93036]
[1729464605165,5.0586,2748.0,2747.9,0.29116]
[1729464605770,1.8508,2748.0,2747.9,0.29116]
[1729464607575,1.8508,2748.0,2747.2,0.44200993]
[1729464607576,8.6978,2748.0,2747.2,0.44200993]
[1729464607766,0.29121,2747.6,2747.3,0.29123]
[1729464607963,1.8515,2747.5,2747.3,0.29123]
[1729464608168,1.8515,2747.5,2747.4,0.29122]
[1729464609063,3.2078,2747.7,2747.6,0.2912]
[1729464609671,1.7765,2747.9,2747.6,0.2912]
[1729464609878,3.2078,2747.7,2747.6,0.2912]
[1729464610270,1.7765,2747.9,2747.1,0.72814]
[1729464610472,1.7765,2747.9,2747.7,0.29119]
[1729464611169,1.7765,2747.9,2747.8,0.29118]
[1729464611474,1.8508,2748.0,2747.3,3.2078]
[1729464611768,1.8508,2748.0,2747.9,0.29117]
[1729464612262,3.2078,2748.1,2748.0,0.29116]
[1729464612876,3.2078,2748.1,2748.0,3.93036]
[1729464613572,1.41793365,2748.9,2748.0,3.6392]
[1729464613573,1.9413,2748.9,2748.0,3.6392]
[1729464613878,1.8143,2748.8,2748.7,0.29109]
[1729464614282,1.8143,2748.8,2748.2,3.2078]
[1729464614667,1.8143,2748.8,2748.6,0.29109]
[1729464614969,1.8143,2748.8,2748.7,0.29109]
[1729464615165,1.8143,2748.8,2748.2,3.2078]
[1729464615365,1.8143,2748.8,2748.4,0.29111]
[1729464615567,3.49889,2748.7,2748.4,0.29111]
[1729464615773,6.8462,2748.7,2748.0,0.29115]
[1729464615968,3.23223365,2748.8,2747.9,0.29116]
[1729464615969,3.2078,2748.2,2747.9,0.29116]
[1729464616171,3.2078,2748.2,2747.6,3.2078]
[1729464616172,1.8971,2748.1,2747.6,3.2078]
[1729464616473,1.8971,2748.1,2748.0,0.29116]
[1729464616881,3.32353365,2748.5,2748.0,3.6392]
[1729464616882,1.9056,2748.5,2748.0,3.6392]
[1729464617073,1.8971,2748.5,2748.4,0.29112]
[1729464617771,1.41793365,2748.7,2747.9,3.3921]
[1729464618076,1.41793365,2748.7,2748.5,0.2911]
[1729464618380,6.57563365,2748.8,2748.6,0.2911]
[1729464618568,6.57563365,2748.8,2748.0,0.72791]
[1729464618569,6.57563365,2748.8,2748.7,0.29109]
[1729464619077,6.57563365,2748.8,2748.0,1.3943]
[1729464619078,1.9499,2748.8,2748.5,0.2911]
[1729464619279,6.57563365,2748.8,2748.5,0.2911]
[1729464619972,1.41793365,2748.7,2748.5,0.2911]
[1729464620367,1.41793365,2748.7,2747.9,6.74595343]
[1729464620779,1.41793365,2748.7,2748.5,0.29111]
[1729464621079,1.70902365,2748.7,2748.3,0.29112]
[1729464621267,3.2078,2748.5,2748.2,0.29113]
[1729464621470,0.2911,2748.6,2747.9,5.16255343]
[1729464621471,1.41793365,2748.6,2747.9,3.35385343]
[1729464621678,3.36783365,2748.8,2748.7,0.29109]
[1729464622178,1.9499,2748.8,2748.7,0.29109]
[1729464622871,1.41793365,2748.9,2748.2,3.93565]
[1729464623072,1.41793365,2748.9,2748.8,0.29107]
[1729464623771,1.41793365,2749.0,2748.2,0.72785]
[1729464623982,1.41793365,2748.9,2748.8,0.29107]
[1729464624169,1.41793365,2748.9,2748.1,3.1418]
[1729464624371,5.0531,2748.8,2748.6,0.2911]
[1729464624681,3.6866,2748.8,2748.6,0.2911]
[1729464624869,6.8944,2748.8,2748.7,0.29109]
[1729464625068,6.8944,2748.8,2748.1,3.29016498]
[1729464625268,6.8944,2748.8,2748.7,0.29109]
[1729464625269,8.31233365,2748.8,2748.7,0.29109]
[1729464625474,8.31233365,2748.8,2748.1,3.29016498]
[1729464625681,8.31233365,2748.8,2748.2,0.29114]
[1729464625883,8.31233365,2748.8,2748.6,0.29109]
[1729464626382,1.8453,2748.8,2748.7,0.29109]
[1729464627982,1.41793365,2749.0,2748.3,0.7278]
[1729464628181,3.2078,2749.1,2749.0,0.29105]
[1729464630581,3.2078,2749.1,2749.0,3.92865]
[1729464631298,5.0491,2749.4,2749.3,0.29102]
[1729464633782,3.2078,2749.4,2749.3,0.29102]
[1729464634181,3.2078,2749.4,2749.3,3.92862]
[1729464634584,3.2078,2749.7,2749.6,0.29099]
[1729464634789,1.54862836,2749.9,2749.8,0.29097]
[1729464634790,2.04089471,2749.9,2749.8,0.29097]
[1729464635187,2.04089471,2749.9,2749.8,3.92777]
[1729464635576,0.13069471,2749.9,2749.8,3.92777]
[1729464635980,1e-08,2749.9,2749.8,7.88917378]
[1729464636387,1e-08,2749.9,2749.8,6.03163345]
[1729464636890,1.85833304,2750.0,2749.9,3.92776]
[1729464637079,1.0233356,2750.0,2749.9,3.92776]
[1729464637278,0.09019367,2750.0,2749.9,7.94707537]
[1729464637481,3.67e-06,2750.0,2749.9,3.92776]
[1729464637681,3.2078,2750.3,2749.9,7.65611537]
[1729464637882,1.41793365,2750.6,2750.1,3.2078]
[1729464638093,3.2078,2750.9,2750.1,3.2078]
[1729464638289,3.2078,2750.6,2750.2,4.06730927]
[1729464638489,3.2078,2750.6,2749.8,2.10386345]
[1729464638684,4.62573365,2750.9,2749.9,1.954]
[1729464638884,3.2078,2750.9,2750.5,0.29089]
[1729464639086,3.2078,2750.9,2750.0,0.90875563]
[1729464639287,3.2078,2750.9,2750.1,3.93515]
[1729464639485,3.49866,2750.9,2750.6,0.29088]
[1729464640189,3.2078,2750.9,2750.6,0.29087]
[1729464640387,3.2078,2750.9,2750.1,3.80730207]
[1729464640693,3.49869,2750.6,2750.0,0.14560186]
[1729464640994,3.49869,2750.6,2749.8,0.17784388]
[1729464640995,4.1611,2750.5,2749.8,0.17784388]
[1729464641183,4.1611,2750.5,2749.4,3.2078]
[1729464641184,0.29093,2750.2,2749.4,3.2078]
[1729464641490,3.2078,2750.3,2749.6,0.29098]
[1729464641695,0.29095,2750.1,2749.5,4.02000625]
[1729464641989,3.2078,2750.3,2749.4,3.2078]
[1729464642192,3.2078,2750.3,2749.8,0.29096]
[1729464642193,0.29093,2750.2,2749.8,0.29096]
[1729464642489,0.29093,2750.2,2749.4,3.2078]
[1729464642490,1.9446,2750.4,2750.3,0.29092]
[1729464642894,3.2078,2750.6,2750.5,0.29089]
[1729464643284,1.8341,2751.3,2750.5,0.29089]
[1729464643285,1.41849671,2751.9,2750.6,0.364]
[1729464643588,3.2078,2753.3,2751.7,0.72691]
[1729464643789,3.54763973,2753.1,2753.0,0.29063]
[1729464643991,3.54763973,2753.1,2752.7,3.2078]
[1729464644183,3.2078,2753.3,2752.7,3.2078]
[1729464644493,3.2078,2753.3,2752.8,11.96584908]
[1729464644678,3.2078,2753.3,2752.7,3.2078]
[1729464644679,5.2053,2753.3,2752.7,3.2078]
[1729464644883,3.36663973,2752.8,2752.7,3.2078]
[1729464645081,3.36663973,2752.8,2752.4,3.2078]
[1729464645395,3.36663973,2752.5,2752.4,3.2078]
[1729464645585,1.9867,2753.2,2752.4,3.2078]
[1729464645796,3.36663973,2752.5,2751.9,3.2078]
[1729464646089,3.2078,2752.9,2752.2,3.2078]
[1729464646090,3.36663973,2752.3,2752.2,3.2078]
[1729464646291,3.2078,2752.9,2752.2,3.2078]
[1729464646482,3.36663973,2752.3,2752.2,3.2078]
[1729464646989,3.36663973,2752.3,2751.9,3.2078]
[1729464647188,3.36663973,2752.3,2751.4,1.2864]
[1729464647189,3.36663973,2752.3,2752.2,3.2078]
[1729464647489,5.1945,2753.2,2752.2,3.2078]
[1729464647685,3.36663973,2752.5,2752.2,7.09596637]
[1729464647882,3.36663973,2752.3,2752.2,3.2078]
[1729464648088,3.36663973,2752.3,2751.9,3.2078]
[1729464648295,3.36663973,2752.3,2751.9,3.49855]
[1729464648601,3.36663973,2752.3,2752.2,3.2078]
[1729464648802,1.9493,2752.8,2752.2,3.2078]
[1729464649101,3.36663973,2752.7,2752.2,3.49851]
[1729464649292,3.36663973,2752.3,2752.2,3.49851]
[1729464650090,1.9493,2752.8,2752.2,3.2078]
[1729464650282,3.36663973,2752.5,2752.2,3.49851]
[1729464650700,3.36663973,2752.3,2752.2,3.2078]
[1729464650993,3.36663973,2752.3,2752.2,3.49852]
[1729464651289,3.36663973,2752.3,2752.2,3.2078]
[1729464651495,3.36663973,2752.3,2751.4,1.2864]
[1729464651496,3.36663973,2752.3,2751.8,3.2078]
[1729464651683,3.36663973,2752.3,2751.4,1.2864]
[1729464651684,3.36663973,2752.3,2752.1,3.49853]
[1729464651889,3.36663973,2752.3,2752.2,0.29071]
[1729464652095,3.36663973,2752.3,2752.1,3.2078]
[1729464652293,3.36663973,2752.2,2752.0,0.29073]
[1729464652488,0.29068,2752.6,2752.1,3.49852]
[1729464652688,1.964,2752.4,2752.1,3.2078]
[1729464652889,3.36663973,2752.2,2751.8,3.2078]
[1729464653088,3.36663973,2752.1,2751.8,3.2078]
[1729464653599,3.36663973,2752.1,2752.0,0.29074]
[1729464653989,1.868,2752.5,2752.0,0.29074]
[1729464654194,0.32497521,2753.4,2752.4,3.2078]
[1729464654492,3.23663973,2753.2,2752.8,3.2078]
[1729464654700,3.23663973,2753.2,2753.1,3.49842]
[1729464654900,0.32497521,2753.4,2753.1,3.2078]
[1729464655199,3.56161494,2753.4,2753.3,0.2906]
[1729464655402,0.32497521,2753.4,2753.3,0.2906]
[1729464655596,0.32497521,2753.4,2753.2,4.46793306]
[1729464655787,0.32497521,2753.4,2752.3,2.86241582]
[1729464655788,3.23663973,2753.2,2752.9,0.29063]
[1729464655990,0.32497521,2753.4,2752.7,0.29066]
[1729464656191,3.23663973,2752.7,2752.6,0.29067]
[1729464656415,3.23663973,2752.7,2752.6,3.49847]
[1729464656700,3.23663973,2752.7,2752.6,3.49846]
[1729464657202,1.7926,2753.2,2752.6,3.2078]
[1729464657406,1.7926,2753.2,2753.0,3.49843]
[1729464657589,0.32497521,2753.4,2753.0,3.2078]
[1729464657789,3.7282,2754.2,2753.3,3.2078]
[1729464658001,3.7282,2754.2,2753.2,3.2078]
[1729464658002,3.23663973,2753.6,2753.2,3.2078]
[1729464658294,0.29055,2753.8,2753.4,0.29059]
[1729464658496,3.23663973,2753.3,2753.2,3.49841]
[1729464658690,3.23663973,2753.3,2753.2,3.2078]
[1729464659302,6.96483973,2753.3,2753.2,3.2078]
[1729464659595,7.25543973,2753.3,2753.2,3.2078]
[1729464659804,3.23663973,2753.3,2753.2,3.49841]
[1729464660098,3.23663973,2753.3,2753.2,3.2078]
[1729464660599,3.23663973,2753.3,2753.2,3.49841]
[1729464661092,3.7282,2754.0,2753.2,3.2078]
[1729464661292,3.23663973,2753.5,2753.2,3.2078]
[1729464661596,3.23663973,2753.5,2753.4,0.29059]
[1729464661902,3.23663973,2753.5,2753.2,3.2078]
[1729464661903,3.7282,2754.0,2753.2,3.2078]
[1729464662201,3.7282,2754.0,2752.8,1.2839]
[1729464662202,3.23663973,2753.9,2753.8,0.29054]
[1729464662501,3.23663973,2753.9,2753.7,0.29055]
[1729464662693,3.7282,2754.0,2753.4,3.2078]
[1729464662694,3.23663973,2753.8,2753.4,3.2078]
[1729464663001,3.23663973,2753.7,2753.4,3.2078]
[1729464663395,3.7282,2754.0,2753.4,3.2078]
[1729464663700,3.23663973,2753.9,2753.8,0.29055]
[1729464664105,1.9171,2754.0,2753.9,0.29054]
[1729464664290,3.23663973,2754.0,2753.9,0.29054]
[1729464664490,3.2078,2755.3,2753.9,7.46887364]
[1729464664693,3.23663973,2754.9,2754.6,3.2078]
[1729464665103,0.33211545,2755.2,2754.6,3.2078]
[1729464665405,3.2078,2756.4,2755.7,0.29034]
[1729464665593,3.23663973,2755.7,2755.5,0.29036]
[1729464665794,3.23663973,2755.5,2755.4,3.2078]
[1729464665997,3.2078,2756.6,2755.6,3.83767364]
[1729464665998,3.23663973,2756.1,2755.6,3.83767364]
[1729464666298,3.23663973,2756.1,2755.4,3.2078]
[1729464666299,1.8819,2756.5,2755.8,3.2078]
[1729464666499,3.23663973,2756.0,2755.5,7.36434662]
[1729464666699,1.8819,2756.5,2755.5,7.36434662]
[1729464666700,3.23663973,2755.9,2755.5,3.49817]
[1729464666906,3.23663973,2755.9,2755.5,3.2078]
[1729464667210,1.8819,2756.5,2755.8,3.2078]
[1729464667421,3.23663973,2756.2,2755.8,3.2078]
[1729464667708,3.23663973,2756.4,2755.9,3.90220034]
[1729464667904,3.23663973,2756.3,2756.0,0.29031]
[1729464668097,1.8819,2756.5,2755.8,3.2078]
[1729464668297,3.23663973,2755.9,2755.6,0.29035]
[1729464668499,3.23663973,2755.9,2755.5,3.2078]
[1729464668500,1.8819,2756.5,2755.8,3.2078]
[1729464668800,3.23663973,2756.4,2755.8,3.2078]
[1729464669006,3.23663973,2756.4,2755.9,0.29032]
[1729464669205,3.23663973,2756.0,2755.9,3.7995931]
[1729464669500,2.17216,2756.5,2756.0,0.29031]
[1729464669701,1.8819,2756.5,2756.1,3.2078]
[1729464669904,5.11853973,2756.5,2756.2,0.29029]
[1729464670102,5.11853973,2756.5,2756.1,3.2078]
[1729464670409,0.069,2756.7,2756.6,0.29025]
[1729464670612,3.2078,2757.1,2756.6,1.951]
[1729464670806,3.2078,2757.1,2756.7,3.49804]
[1729464671108,3.2078,2757.1,2756.7,3.2078]
[1729464671305,3.2078,2757.6,2756.8,3.79603925]
[1729464671505,3.57589543,2757.0,2756.8,3.79603925]
[1729464671694,0.3392557,2757.0,2756.7,3.2078]
[1729464671901,0.3392557,2757.0,2756.9,0.29022]
[1729464672100,0.3392557,2757.0,2756.9,3.91742]
[1729464672305,0.3392557,2757.0,2756.9,7.69712492]
[1729464673116,0.1,2757.7,2756.9,16.22121962]
[1729464673309,3.2078,2758.6,2757.6,3.2078]
[1729464673605,3.23663973,2758.6,2758.1,3.2078]
[1729464673809,3.23663973,2758.6,2757.7,3.8666511]
[1729464673810,3.23663973,2758.0,2757.8,3.2078]
[1729464674216,2.12756,2758.5,2757.8,3.2078]
[1729464674408,3.23663973,2758.5,2757.8,3.2078]
[1729464674709,2.10714,2758.7,2757.9,4.20452989]
[1729464674927,0.34639595,2758.8,2758.1,3.2078]
[1729464675107,3.23663973,2758.7,2758.1,3.2078]
[1729464675411,0.069,2758.6,2758.2,4.20452989]
[1729464675810,3.30563973,2758.6,2758.2,4.20452989]
[1729464676016,3.23663973,2758.5,2758.2,4.20452989]
[1729464676217,0.069,2758.6,2758.2,4.20452989]
[1729464676402,0.069,2758.6,2758.2,3.6256]
[1729464676608,0.069,2758.7,2758.5,3.2078]
[1729464677011,3.30563973,2758.7,2758.6,4.18797781]
[1729464677311,3.30563973,2758.7,2758.5,6.8326]
[1729464677312,0.069,2758.7,2758.5,6.8326]
[1729464677507,0.72463,2760.5,2758.5,6.8326]
[1729464677508,3.2078,2760.2,2758.6,20.13975286]
[1729464677708,4.0412362,2760.6,2758.6,20.13975286]
[1729464677709,0.28994,2759.6,2759.2,3.2078]
[1729464678115,0.28993,2759.7,2759.3,3.80631303]
[1729464678309,3.2078,2760.3,2759.5,3.2078]
[1729464678512,3.2078,2760.3,2759.4,1.879]
[1729464678513,0.28985,2760.4,2759.8,3.2078]
[1729464678708,3.5613362,2760.6,2759.8,3.2078]
[1729464678916,3.25563973,2760.0,2759.9,3.30631303]
[1729464679213,3.25563973,2760.0,2759.1,5.0868]
[1729464679214,0.2899,2759.9,2759.1,5.0868]
[1729464679516,6.46343973,2760.0,2759.2,1.07880992]
[1729464679517,3.05563973,2759.6,2759.2,1.07880992]
[1729464679812,6.26343973,2759.6,2759.2,1.07880992]
[1729464680018,0.28993,2759.7,2759.2,1.07880992]
[1729464680311,3.2078,2759.7,2759.2,1.07880992]
[1729464680814,3.05563973,2759.3,2759.2,1.07880992]
[1729464681005,3.05563973,2759.3,2758.8,3.2078]
[1729464681209,3.05563973,2758.5,2757.7,3.2078]
[1729464681415,3.05563973,2757.9,2757.7,3.2078]
[1729464681815,3.05563973,2757.8,2757.7,3.2078]
[1729464682212,2.19987,2758.4,2757.7,10.82214051]
[1729464682425,3.05563973,2758.4,2758.0,3.2078]
[1729464682819,1.8922,2758.9,2758.1,10.95314356]
[1729464683011,3.05563973,2758.8,2758.4,3.2078]
[1729464683323,3.05563973,2758.8,2757.3,1.6122]
[1729464683324,3.05563973,2758.6,2758.5,3.57299628]
[1729464683624,3.34566973,2758.8,2758.2,3.8916951]
[1729464683913,0.29001,2759.0,2758.5,7.0994951]
[1729464684111,0.28999,2759.1,2758.5,7.0994951]
[1729464684318,0.28999,2759.1,2758.5,3.2078]
[1729464684522,3.49778,2759.2,2758.6,3.81699964]
[1729464684815,6.26343973,2759.2,2758.6,3.81699964]
[1729464685421,3.05563973,2758.9,2758.6,3.81699964]
[1729464685625,3.05563973,2758.9,2758.2,3.2078]
[1729464685626,0.29006,2758.4,2758.2,3.2078]
[1729464685818,3.05563973,2758.5,2758.2,3.2078]
[1729464686022,0.29011,2757.9,2757.8,5.0868]
[1729464686219,0.29015,2757.6,2757.5,3.2078]
[1729464686418,3.05563973,2757.4,2757.2,3.2078]
[1729464686615,3.05563973,2757.4,2756.8,1.878]
[1729464686616,3.05563973,2757.0,2756.9,3.2078]
[1729464686916,3.2078,2757.5,2756.9,3.2078]
[1729464687226,3.2078,2757.5,2756.8,1.878]
[1729464687227,3.05563973,2757.0,2756.8,1.878]
[1729464687517,3.05563973,2756.9,2756.8,1.878]
[1729464687712,3.34585973,2756.9,2756.8,1.878]
[1729464688127,3.34585973,2756.9,2755.9,3.2078]
[1729464688128,6.26343973,2756.9,2755.9,3.2078]
[1729464688318,0.29028,2756.4,2755.9,3.2078]
[1729464688621,3.2078,2756.6,2756.0,4.01997389]
[1729464688622,3.05563973,2756.1,2756.0,4.01997389]
[1729464688819,3.34594973,2756.0,2755.9,3.2078]
[1729464689516,3.34594973,2756.0,2755.6,3.2078]
[1729464689517,0.29034,2755.9,2755.6,3.2078]
[1729464689725,3.05563973,2755.7,2755.6,3.2078]
[1729464689934,3.34598973,2755.7,2755.6,3.2078]
[1729464690116,3.34598973,2755.7,2754.5,0.3632]
[1729464690117,6.26343973,2755.7,2755.0,3.2078]
[1729464690316,3.05563973,2755.4,2755.0,3.2078]
[1729464690523,3.05563973,2755.4,2755.0,7.09436446]
[1729464690722,0.29039,2755.3,2755.0,3.2078]
[1729464690923,0.29041,2755.1,2755.0,3.2078]
[1729464691319,0.29041,2755.1,2755.0,7.09436446]
[1729464691320,3.05563973,2755.1,2755.0,7.09436446]
[1729464691520,1.8709,2756.1,2755.0,6.8374]
[1729464691717,3.34595973,2756.0,2755.6,3.2078]
[1729464692125,3.34595973,2756.0,2755.7,3.8292683]
[1729464692425,3.05563973,2755.7,2755.3,1.879]
[1729464692826,3.05563973,2755.7,2755.4,3.78355352]
[1729464693020,3.05563973,2755.7,2754.5,0.3632]
[1729464693021,0.29043,2755.0,2754.8,3.2078]
[1729464693218,0.2904,2755.2,2754.8,3.2078]
[1729464693425,0.29042,2755.0,2754.9,3.78355352]
[1729464693723,0.29042,2755.0,2754.5,5.0868]
[1729464693724,3.05563973,2754.9,2754.5,5.0868]
[1729464693925,3.2078,2755.3,2754.5,5.0868]
[1729464693926,3.34609973,2754.6,2754.5,5.0868]
[1729464694126,3.05563973,2754.6,2754.5,5.0868]
[1729464694333,3.34609973,2754.6,2754.5,5.0868]
[1729464694829,3.34609973,2754.6,2753.5,1.06279906]
[1729464694830,0.29049,2754.4,2754.1,3.2078]
[1729464695127,3.2078,2754.8,2754.1,3.2078]
[1729464695128,3.05563973,2754.5,2754.1,3.2078]
[1729464695330,3.05563973,2754.5,2754.2,3.87304074]
[1729464695728,0.2904,2755.2,2754.4,3.2078]
[1729464696026,3.05563973,2755.0,2754.5,3.79868761]
[1729464696829,3.05563973,2755.0,2754.5,5.67868761]
[1729464697031,0.72584,2755.9,2754.5,5.67868761]
[1729464697032,5.0787,2756.1,2754.7,3.2078]
[1729464697229,5.0787,2756.1,2755.2,3.2078]
[1729464697434,3.05563973,2755.7,2755.2,3.2078]
[1729464697738,3.05563973,2755.7,2755.3,4.19883073]
[1729464698434,3.05563973,2755.7,2755.3,4.48922073]
[1729464698630,3.05563973,2755.7,2755.3,0.29039]
[1729464698824,3.05563973,2755.7,2755.4,3.79962445]
[1729464699130,3.34601973,2755.4,2755.3,3.79962445]
[1729464699330,3.2078,2755.8,2755.3,4.09000445]
[1729464699331,3.05563973,2755.5,2755.3,4.09000445]
[1729464699530,3.05563973,2755.5,2755.3,0.29038]
[1729464700325,0.29034,2755.8,2755.3,0.29038]
[1729464700526,3.05563973,2755.7,2755.4,3.78485446]
[1729464700926,3.05563973,2755.7,2755.5,0.29036]
[1729464701130,0.29027,2756.5,2755.6,1.88]
[1729464701334,3.05563973,2756.2,2756.1,0.2903]
[1729464701529,3.7087,2757.1,2756.1,3.628]
[1729464701729,3.7087,2757.1,2756.8,0.29022]
[1729464701730,3.05563973,2756.9,2756.8,0.29022]
[1729464702037,3.05563973,2756.9,2756.6,3.2078]
[1729464702247,3.2078,2757.3,2756.9,0.29021]
[1729464702448,3.2078,2757.3,2756.8,3.8691994]
[1729464702449,3.05563973,2757.1,2756.8,0.29022]
[1729464702736,0.29021,2757.0,2756.9,4.14265342]
[1729464703127,3.05563973,2757.0,2756.0,5.0878]
[1729464703335,1.7793,2757.2,2756.0,5.0878]
[1729464703531,1.7793,2757.2,2756.3,3.2078]
[1729464703739,2.51092335,2756.2,2756.1,3.86935815]
[1729464703931,2.51092335,2756.2,2756.0,3.49811]
[1729464704642,1.60298078,2756.2,2755.6,3.2078]
[1729464704846,1.60298078,2756.2,2755.8,1.895]
[1729464705335,0.29026,2756.6,2755.9,10.98940516]
[1729464705541,0.29026,2756.6,2755.9,7.36060516]
[1729464705542,1.60298078,2756.4,2755.9,7.36060516]
[1729464705937,3.2078,2756.7,2756.2,3.2078]
[1729464706128,1.60298078,2756.4,2756.0,4.61687657]
[1729464706339,1.7793,2757.2,2755.9,3.2078]
[1729464706340,1.60298078,2756.2,2755.9,3.2078]
[1729464706637,1.89328078,2756.2,2756.0,4.18805473]
[1729464706832,1.60298078,2756.2,2756.0,4.18805473]
[1729464707028,1.60298078,2756.1,2755.9,3.2078]
[1729464707243,1.60298078,2756.0,2755.9,3.2078]
[1729464707641,1.60298078,2756.0,2755.5,3.2078]
[1729464707835,1.60298078,2755.7,2755.5,3.2078]
[1729464708034,1.60298078,2755.6,2755.5,3.2078]
[1729464708437,1.8296,2756.3,2755.7,0.29034]
[1729464708642,1.60298078,2756.0,2755.6,0.29035]
[1729464708943,1.60298078,2756.0,2755.8,3.81215947]
[1729464709140,1.60298078,2756.0,2755.7,3.81215947]
[1729464709141,1.60298078,2755.9,2755.7,3.81215947]
[1729464709340,1.60298078,2755.9,2755.7,0.29034]
[1729464709741,1.60298078,2755.9,2755.6,0.29035]
[1729464710135,1.89331078,2755.9,2755.6,4.01946207]
[1729464710338,1.60298078,2755.7,2755.5,3.2078]
[1729464710537,1.60298078,2755.6,2755.5,3.2078]
[1729464710735,0.29026,2756.6,2756.2,0.29029]
[1729464710944,3.2078,2756.9,2756.1,3.2078]
[1729464711153,1.60298078,2756.7,2756.3,4.0858574]
[1729464711443,3.2078,2756.9,2756.2,4.0858574]
[1729464711643,3.2078,2756.9,2755.8,5.1728]
[1729464711644,1.60298078,2756.2,2755.8,5.1728]
[1729464711845,1.60298078,2756.2,2756.1,3.4981]
[1729464712047,3.2078,2756.9,2756.1,3.2078]